bitfinex-derivatives/quotes_SOLF0:USTF0_20250221
["timestamp","ask_amount","ask_price","bid_price","bid_amount"]
[1740145147920,5.1818,180.3,180.25,0.04057257]
[1740145148121,5.5457,180.26,180.25,0.04057257]
[1740145148719,29.13409076,180.3,180.25,0.04057257]
[1740145149626,5.5457,180.26,180.25,0.04057257]
[1740145149826,29.13409076,180.3,180.25,0.04057257]
[1740145150122,5.5457,180.26,180.25,0.04057257]
[1740145150524,61.0257,180.26,180.25,0.04057257]
[1740145150725,75.99065603,180.26,180.25,0.04057257]
[1740145151121,14.96495603,180.26,180.25,0.04057257]
[1740145151628,20.51065603,180.26,180.25,0.04057257]
[1740145151830,75.99065603,180.26,180.25,0.04057257]
[1740145152623,14.96495603,180.26,180.25,0.04057257]
[1740145152823,70.44495603,180.26,180.15,14.96495603]
[1740145153128,14.96495603,180.26,180.15,14.96495603]
[1740145153625,5.5461,180.25,180.21,5.5471]
[1740145154027,5.58403239,180.25,180.21,5.58773735]
[1740145154526,0.03793239,180.25,180.21,0.04063735]
[1740145154716,0.03793239,180.25,180.22,5.5467]
[1740145154921,0.03793239,180.25,180.21,0.04063735]
[1740145156031,5.5466,180.24,180.21,0.04063735]
[1740145156324,15.00288842,180.25,180.21,0.04063735]
[1740145156730,0.03793239,180.25,180.21,0.04063735]
[1740145157229,0.03793239,180.25,180.24,5.5463]
[1740145158821,0.03793239,180.25,180.21,0.04063735]
[1740145158822,20.50965603,180.3,180.27,5.5454]
[1740145159426,20.50965603,180.3,180.19,5.2746]
[1740145159731,20.50965603,180.3,180.26,5.5456]
[1740145160631,189.6882626,180.43,180.27,14.96495603]
[1740145160930,14.96495603,180.39,180.27,14.96495603]
[1740145161125,14.96495603,180.39,180.34,5.543]
[1740145161524,14.96495603,180.39,180.33,0.03603955]
[1740145161723,14.96495603,180.39,180.35,5.5429]
[1740145162122,3.5236,180.41,180.36,5.5426]
[1740145162323,3.5236,180.41,180.33,14.96495603]
[1740145162521,204.65321863,180.45,180.37,0.04224636]
[1740145162921,204.65321863,180.45,180.38,5.542]
[1740145163134,204.65321863,180.45,180.37,0.04224636]
[1740145163329,5.5405,180.44,180.37,0.04224636]
[1740145163635,204.65321863,180.45,180.37,0.04224636]
[1740145164226,14.96495603,180.42,180.37,0.04224636]
[1740145164425,5.5415,180.4,180.37,0.04224636]
[1740145164834,14.96495603,180.39,180.37,0.04224636]
[1740145165131,5.542,180.38,180.37,0.04224636]
[1740145165530,60.982,180.38,180.37,0.04224636]
[1740145166133,5.5432,180.35,180.28,10.8494]
[1740145166335,14.96495603,180.36,180.28,7.2505]
[1740145166528,14.96495603,180.36,180.25,14.96495603]
[1740145166728,14.96495603,180.36,180.26,5.5456]
[1740145166932,14.96495603,180.33,180.23,5.1059]
[1740145167334,20.54473539,180.33,180.29,0.03728212]
[1740145167535,15.00113539,180.33,180.29,0.03728212]
[1740145168537,5.5445,180.3,180.29,0.03728212]
[1740145168736,23.96702925,180.33,180.29,0.03728212]
[1740145169234,5.5444,180.31,180.29,0.03728212]
[1740145169431,23.96702925,180.33,180.29,0.03728212]
[1740145169837,0.03617936,180.33,180.29,0.03728212]
[1740145170840,5.57977936,180.33,180.29,0.03728212]
[1740145171041,0.03617936,180.33,180.29,0.03728212]
[1740145171337,5.57977936,180.33,180.29,0.03728212]
[1740145171543,0.03617936,180.33,180.29,0.03728212]
[1740145171844,5.57977936,180.33,180.29,0.03728212]
[1740145172042,0.03617936,180.33,180.29,0.03728212]
[1740145172339,5.5441,180.32,180.29,0.03728212]
[1740145172743,0.03617936,180.33,180.29,0.03728212]
[1740145173344,5.57997936,180.33,180.29,0.03728212]
[1740145173738,5.57997936,180.33,180.29,5.58208212]
[1740145174040,0.03617936,180.33,180.29,0.03728212]
[1740145175040,0.03617936,180.33,180.31,5.544]
[1740145175636,0.03617936,180.33,180.32,5.5439]
[1740145176643,0.03617936,180.33,180.32,61.0039]
[1740145177043,5.2228,180.43,180.32,55.46]
[1740145177243,3.5636,180.43,180.31,3.5708]
[1740145177543,5.5412,180.41,180.31,3.5708]
[1740145177748,3.5636,180.43,180.31,3.5708]
[1740145178045,3.5636,180.43,180.35,0.04207927]
[1740145178847,3.5636,180.43,180.35,5.58497927]
[1740145179047,5.5417,180.4,180.35,5.58497927]
[1740145179546,3.5636,180.43,180.35,5.58497927]
[1740145179747,3.5636,180.43,180.37,5.5422]
[1740145180443,3.5636,180.43,180.36,5.5426]
[1740145180844,3.5636,180.43,180.35,0.04207927]
[1740145181042,3.5636,180.43,180.36,5.5424]
[1740145181346,5.5412,180.41,180.36,5.5424]
[1740145181943,5.5411,180.41,180.37,5.5421]
[1740145182145,5.5411,180.41,180.35,0.04207927]
[1740145182146,3.5636,180.43,180.35,0.04207927]
[1740145182447,5.5419,180.39,180.35,0.04207927]
[1740145182639,3.5636,180.43,180.35,0.04207927]
[1740145183049,5.5419,180.39,180.35,0.04207927]
[1740145183550,5.5415,180.4,180.36,5.5426]
[1740145183849,3.5636,180.43,180.35,0.04207927]
[1740145184149,5.5419,180.39,180.35,0.04207927]
[1740145185951,3.5636,180.43,180.35,0.04207927]
[1740145187249,5.5422,180.38,180.35,0.04207927]
[1740145187649,5.5418,180.39,180.35,0.04207927]
[1740145187842,23.93084989,180.42,180.36,5.5426]
[1740145188047,3.5636,180.43,180.35,0.04207927]
[1740145188348,5.5414,180.41,180.36,5.5424]
[1740145188742,5.5416,180.4,180.36,5.5424]
[1740145190051,5.5411,180.41,180.37,5.5423]
[1740145191054,18.50162349,180.43,180.37,5.5423]
[1740145191254,5.5412,180.41,180.37,5.5423]
[1740145191753,5.5409,180.42,180.35,0.04207927]
[1740145192350,5.5409,180.42,180.38,5.542]
[1740145192755,5.5411,180.41,180.35,0.04207927]
[1740145192953,5.5411,180.41,180.37,5.5421]
[1740145193149,18.50162349,180.43,180.35,0.04207927]
[1740145193946,18.50162349,180.43,180.36,5.5425]
[1740145194146,18.50162349,180.43,180.35,0.04207927]
[1740145194357,16.75062349,180.43,180.35,0.04207927]
[1740145194557,5.5409,180.42,180.38,5.5418]
[1740145194758,16.75062349,180.43,180.34,14.93802349]
[1740145194958,16.75062349,180.43,180.38,0.03587929]
[1740145195257,1.8126,180.43,180.38,0.03587929]
[1740145195661,5.5413,180.41,180.38,0.03587929]
[1740145195853,1.8126,180.43,180.38,0.03587929]
[1740145196248,5.5413,180.41,180.38,5.57787929]
[1740145196447,5.5413,180.41,180.38,0.03587929]
[1740145196656,1.8126,180.43,180.38,0.03587929]
[1740145196956,5.5409,180.42,180.38,5.57767929]
[1740145197158,1.8126,180.43,180.38,5.57767929]
[1740145197359,14.93802349,180.46,180.38,0.03587929]
[1740145197558,5.5403,180.44,180.39,5.5416]
[1740145197759,5.5403,180.44,180.38,0.03587929]
[1740145198061,5.5403,180.44,180.38,5.57767929]
[1740145198454,5.5403,180.44,180.38,0.03587929]
[1740145199060,5.5403,180.44,180.39,5.5417]
[1740145199955,5.5403,180.44,180.4,5.5413]
[1740145200256,14.93802349,180.46,180.38,0.03587929]
[1740145200452,3.5852,180.47,180.43,5.5402]
[1740145200652,3.5852,180.47,180.4,14.93802349]
[1740145200857,20.47672349,180.49,180.43,0.04077187]
[1740145201156,14.93802349,180.49,180.44,5.54]
[1740145201855,14.93802349,180.49,180.43,0.04077187]
[1740145202059,3.5341,180.54,180.43,0.04077187]
[1740145202060,14.93802349,180.52,180.43,0.04077187]
[1740145202261,5.5381,180.51,180.4,14.93802349]
[1740145202461,14.93802349,180.52,180.46,0.03513117]
[1740145202858,5.5381,180.51,180.46,0.03513117]
[1740145203064,303.50122016,180.62,180.46,0.03513117]
[1740145203265,16.68222349,180.57,180.46,14.93802349]
[1740145203465,14.93802349,180.54,180.5,0.0389122]
[1740145203665,14.93802349,180.54,180.43,14.93802349]
[1740145203866,14.93802349,180.51,180.5,0.03873734]
[1740145204168,14.93802349,180.51,180.4,14.93802349]
[1740145204169,14.93802349,180.51,180.37,16.73412349]
[1740145204373,14.93802349,180.48,180.37,1.7961]
[1740145204971,14.93802349,180.45,180.36,14.93802349]
[1740145205164,0.03778185,180.44,180.41,0.03824508]
[1740145206266,5.5408,180.42,180.41,0.03824508]
[1740145206567,14.93802349,180.42,180.33,16.74022349]
[1740145206967,14.93802349,180.42,180.27,246.30513321]
[1740145206968,14.93802349,180.42,180.3,14.93802349]
[1740145207166,1.7135,180.41,180.3,14.93802349]
[1740145207669,0.04183139,180.38,180.35,0.03838436]
[1740145209066,14.93802349,180.48,180.36,14.93802349]
[1740145209867,5.5405,180.44,180.38,5.542]
[1740145210070,14.93802349,180.48,180.36,14.93802349]
[1740145210263,0.03810133,180.43,180.39,0.04164809]
[1740145210460,14.93802349,180.42,180.34,5.543]
[1740145210665,14.93802349,180.42,180.28,5.3151]
[1740145210666,1.6693,180.42,180.39,0.0357975]
[1740145210861,1.6693,180.42,180.29,23.90251814]
[1740145211164,0.03682587,180.37,180.34,0.03857701]
[1740145211959,0.03682587,180.37,180.34,5.58177701]
[1740145212164,0.03682587,180.37,180.34,0.03857701]
[1740145212769,0.03682587,180.37,180.34,5.58177701]
[1740145212969,0.03682587,180.37,180.34,0.03857701]
[1740145213873,0.03682587,180.37,180.35,5.5427]
[1740145214067,0.03682587,180.37,180.34,0.03857701]
[1740145214273,0.03682587,180.37,180.36,5.5426]
[1740145214774,23.90251814,180.47,180.34,0.03857701]
[1740145215073,5.5405,180.43,180.38,5.5418]
[1740145215270,5.5405,180.43,180.32,23.90251814]
[1740145215474,5.5409,180.42,180.32,23.90251814]
[1740145215682,5.5409,180.42,180.36,0.03500306]
[1740145215870,23.90251814,180.47,180.36,0.03500306]
[1740145216175,5.541,180.42,180.36,5.5424]
[1740145216376,23.90251814,180.47,180.4,0.03932492]
[1740145216579,5.5411,180.42,180.4,0.03932492]
[1740145216877,3.5751,180.48,180.4,5.58062492]
[1740145217077,3.5751,180.48,180.4,0.03932492]
[1740145217078,5.5395,180.47,180.4,0.03932492]
[1740145217376,3.5751,180.48,180.43,5.5404]
[1740145217872,3.5751,180.48,180.44,0.04064897]
[1740145218071,1.7359,180.53,180.38,23.90251814]
[1740145218270,3.6092,180.52,180.38,23.90251814]
[1740145218466,5.5389,180.49,180.44,5.5402]
[1740145218672,3.6092,180.52,180.44,5.5402]
[1740145218879,3.6092,180.52,180.38,23.90251814]
[1740145219179,5.5384,180.5,180.45,5.5396]
[1740145219379,3.6092,180.52,180.43,0.03884118]
[1740145219775,9.1472,180.52,180.43,0.03884118]
[1740145220375,5.5384,180.5,180.43,0.03884118]
[1740145220976,5.5384,180.5,180.45,5.5398]
[1740145221478,3.6092,180.52,180.43,0.03884118]
[1740145221978,5.5392,180.48,180.43,0.03884118]
[1740145222277,3.6092,180.52,180.43,0.03884118]
[1740145222478,3.6092,180.52,180.43,5.57914118]
[1740145222672,3.6092,180.52,180.43,0.03884118]
[1740145223069,5.5395,180.47,180.43,0.03884118]
[1740145223474,23.90251814,180.51,180.43,0.03884118]
[1740145223675,23.90251814,180.48,180.43,0.03884118]
[1740145224176,3.6092,180.52,180.43,0.03884118]
[1740145224177,23.90251814,180.51,180.43,0.03884118]
[1740145224480,5.5402,180.44,180.43,0.03884118]
[1740145224674,23.90251814,180.45,180.28,167.82940347]
[1740145224876,23.90251814,180.45,180.3,5.2284]
[1740145224877,1.6792,180.44,180.3,5.2284]
[1740145225083,23.90251814,180.42,180.3,5.2284]
[1740145225780,5.5419,180.39,180.33,5.5434]
[1740145225978,0.03756145,180.38,180.34,0.03762432]
[1740145226580,0.03756145,180.38,180.34,5.58082432]
[1740145226977,0.03756145,180.38,180.35,5.5429]
[1740145227377,0.03756145,180.38,180.34,0.03762432]
[1740145229686,5.57986145,180.38,180.34,0.03762432]
[1740145229979,0.03756145,180.38,180.34,0.03762432]
[1740145231281,5.57956145,180.38,180.34,0.03762432]
[1740145231475,14.93998208,180.35,180.23,14.93998208]
[1740145231680,14.93998208,180.35,180.24,1.7481]
[1740145232474,5.5442,180.31,180.24,1.7481]
[1740145232679,5.58232171,180.31,180.28,0.03596404]
[1740145232879,0.03812171,180.31,180.28,0.03596404]
[1740145233581,55.49812171,180.31,180.28,0.03596404]
[1740145233790,23.9230645,180.3,180.21,30.3403744]
[1740145234586,5.5458,180.26,180.21,30.3403744]
[1740145234885,23.9230645,180.3,180.22,0.03585229]
[1740145235084,0.04222698,180.25,180.23,5.5466]
[1740145235979,0.04222698,180.25,180.22,5.58275229]
[1740145236185,0.04222698,180.25,180.22,0.03585229]
[1740145237890,23.9230645,180.24,180.09,169.0830645]
[1740145238186,23.9230645,180.24,180.1,3.4139]
[1740145238683,5.547,180.22,180.1,3.4139]
[1740145238888,0.0426202,180.19,180.15,0.04021794]
[1740145239284,0.0426202,180.19,180.18,5.5482]
[1740145240690,193.0,180.29,180.18,55.5]
[1740145240885,193.0,180.29,180.15,23.95953564]
[1740145241090,23.9230645,180.27,180.12,23.9230645]
[1740145241790,0.04220558,180.21,180.18,0.03735622]
[1740145245391,0.04220558,180.21,180.19,5.5478]
[1740145245691,23.9230645,180.33,180.19,55.5]
[1740145245991,23.9230645,180.33,180.18,23.9230645]
[1740145246695,0.04068933,180.27,180.24,0.04266901]
[1740145247591,55.48,180.26,180.1,3.3542]
[1740145247895,23.9230645,180.24,180.1,3.3542]
[1740145248098,23.9230645,180.24,180.13,5.5496]
[1740145248298,23.9230645,180.24,180.1,3.3542]
[1740145248886,0.03530489,180.19,180.15,0.04130758]
[1740145249098,23.9230645,180.18,180.15,0.04130758]
[1740145249490,23.9230645,180.18,180.09,145.16]
[1740145249889,23.9230645,180.15,180.07,0.50725589]
[1740145250090,5.5498,180.13,180.07,0.50725589]
[1740145250296,23.9230645,180.12,179.98,145.24]
[1740145250801,193.0,180.16,179.98,145.24]
[1740145250802,0.04070494,180.07,180.03,0.041587]
[1740145251299,23.9230645,180.06,179.94,60.6117426]
[1740145251601,23.9230645,180.03,179.94,60.6117426]
[1740145251801,5.5532,180.02,179.94,60.6117426]
[1740145251998,23.9230645,180.03,179.94,60.6117426]
[1740145252393,23.9230645,180.06,179.94,60.6117426]
[1740145252598,0.03605537,180.01,179.98,0.03976301]
[1740145255497,0.03605537,180.01,179.99,5.554]
[1740145256997,0.03605537,180.01,179.98,0.03976301]
[1740145257197,0.03605537,180.01,179.98,5.59376301]
[1740145257700,0.03605537,180.01,179.98,0.03976301]
[1740145260904,0.03605537,180.01,180.0,5.5537]
[1740145261100,0.03605537,180.01,179.98,0.03976301]
[1740145261304,23.95911987,180.01,179.98,0.03976301]
[1740145261598,29.51281987,180.01,179.98,0.03976301]
[1740145261996,23.95911987,180.01,179.83,145.28]
[1740145262197,29.4779645,179.97,179.83,145.28]
[1740145262505,23.9230645,179.97,179.83,145.28]
[1740145262799,23.9230645,180.0,179.83,145.28]
[1740145263002,193.0,179.99,179.83,145.28]
[1740145263202,0.04039451,179.93,179.9,0.03618768]
[1740145266302,23.9230645,179.92,179.9,0.03618768]
[1740145266497,5.5565,179.91,179.9,0.03618768]
[1740145266700,23.9230645,179.92,179.9,0.03618768]
[1740145266902,55.58,179.91,179.73,43.29172603]
[1740145267097,23.9230645,179.87,179.8,5.5596]
[1740145267297,23.9230645,179.87,179.74,5.4488]
[1740145268100,0.03528221,179.82,179.81,5.5596]
[1740145268303,193.0,179.92,179.81,23.9230645]
[1740145268502,23.9230645,179.96,179.82,1.8375]
[1740145268698,1.7979,179.97,179.82,1.8375]
[1740145269002,3.5406,179.98,179.84,23.9230645]
[1740145269397,0.04247597,179.93,179.89,0.03868713]
[1740145270399,23.9230645,179.91,179.89,0.03868713]
[1740145271004,5.5568,179.9,179.89,0.03868713]
[1740145271204,23.9230645,179.91,179.79,1.822]
[1740145271609,23.9230645,179.94,179.79,1.822]
[1740145272103,23.9230645,179.91,179.79,1.822]
[1740145272500,0.03529086,179.87,179.83,0.03902507]
[1740145273205,23.9230645,179.85,179.83,0.03902507]
[1740145273800,0.03529086,179.87,179.83,5.59792507]
[1740145275006,23.9230645,179.85,179.83,0.03902507]
[1740145275208,23.9230645,179.85,179.74,1.7794]
[1740145275209,23.9230645,179.85,179.78,5.5605]
[1740145275510,23.9230645,179.85,179.73,43.29172603]
[1740145275511,5.559,179.83,179.73,43.29172603]
[1740145275711,1.6781,179.84,179.73,43.29172603]
[1740145275913,23.9230645,179.82,179.73,43.29172603]
[1740145276110,23.9230645,179.82,179.72,147.1883]
[1740145276406,0.03568979,179.79,179.76,0.0360733]
[1740145277106,23.9230645,179.88,179.76,55.6660733]
[1740145277313,1.8042,179.89,179.76,0.0360733]
[1740145277314,194.8042,179.89,179.76,0.0360733]
[1740145277512,194.8042,179.89,179.75,23.9230645]
[1740145277906,1.8369,179.9,179.87,5.5575]
[1740145278108,23.9230645,179.94,179.81,23.9230645]
[1740145278304,23.9230645,179.94,179.82,1.7822]
[1740145278505,0.04189815,179.9,179.89,5.5571]
[1740145278803,1.8369,179.98,179.87,0.03777305]
[1740145279008,5.5535,180.01,179.96,5.5549]
[1740145279210,25.7599645,180.03,179.88,1.7532]
[1740145279507,23.9230645,180.0,179.88,1.7532]
[1740145279910,0.03966084,179.96,179.92,0.03723254]
[1740145280311,0.03966084,179.96,179.88,1.7532]
[1740145280516,0.03966084,179.96,179.92,0.03644909]
[1740145280919,0.03966084,179.96,179.95,5.5553]
[1740145281109,1.7915,180.04,179.93,55.57]
[1740145281314,1.7915,180.04,179.98,5.5541]
[1740145281515,1.7915,180.04,179.93,1.8006]
[1740145281715,1.7915,180.04,179.88,1.7532]
[1740145281716,23.9230645,180.0,179.88,1.7532]
[1740145282124,23.9230645,179.97,179.88,1.7532]
[1740145282417,0.04195888,179.96,179.92,0.04152044]
[1740145283017,23.9230645,179.94,179.92,0.04152044]
[1740145283216,23.9230645,179.91,179.78,1.7225]
[1740145283417,23.9230645,179.91,179.79,1.7541]
[1740145283622,23.9230645,179.94,179.79,25.6771645]
[1740145283920,1.8074,179.95,179.82,23.9230645]
[1740145284322,0.04058825,179.9,179.87,0.04009376]
[1740145285122,0.04058825,179.9,179.87,5.59779376]
[1740145285322,0.04058825,179.9,179.87,0.04009376]
[1740145285820,0.04058825,179.9,179.89,5.5571]
[1740145286218,193.0,179.97,179.95,5.5552]
[1740145286413,23.9230645,180.03,179.87,0.04009376]
[1740145286618,23.9230645,180.0,179.85,31.6630645]
[1740145286826,5.5553,179.96,179.91,5.5565]
[1740145287022,5.5553,179.96,179.85,7.74]
[1740145287219,23.9230645,179.97,179.85,7.74]
[1740145287420,1.7947,179.98,179.85,7.74]
[1740145287421,0.04066216,179.92,179.89,0.03787998]
[1740145287816,23.9230645,180.03,179.89,0.03787998]
[1740145288016,29.4761645,180.03,179.87,25.6759645]
[1740145288321,23.9230645,180.03,179.9,23.9230645]
[1740145288523,202.0637,180.04,179.9,23.9230645]
[1740145288724,196.5111,180.04,179.9,23.9230645]
[1740145289121,0.03619217,179.99,179.98,5.5543]
[1740145289520,0.03705515,180.0,179.97,0.04105667]
[1740145289824,23.9230645,180.0,179.87,25.6759645]
[1740145290020,23.96197272,180.0,179.97,0.04200092]
[1740145290222,23.9230645,180.0,179.87,1.7529]
[1740145290421,23.9230645,179.97,179.87,1.7529]
[1740145290725,0.03609003,179.94,179.92,0.03811204]
[1740145291621,0.03609003,179.94,179.92,5.59431204]
[1740145291821,0.03609003,179.94,179.92,0.03811204]
[1740145293125,23.95915453,179.94,179.92,0.03811204]
[1740145293321,61.1359,179.93,179.88,5.5574]
[1740145293526,1.7599,179.93,179.8,1.8315]
[1740145293725,23.9230645,179.91,179.8,1.8315]
[1740145294616,0.0389091,179.87,179.84,0.03639518]
[1740145295116,0.0389091,179.87,179.86,5.5581]
[1740145295822,216.9230645,179.97,179.93,5.5556]
[1740145296026,193.0,179.97,179.84,23.9230645]
[1740145296325,23.9230645,180.0,179.84,23.9230645]
[1740145296525,7.72,180.04,179.82,23.9230645]
[1740145296526,23.9230645,179.97,179.82,23.9230645]
[1740145296726,5.5554,179.95,179.82,23.9230645]
[1740145296929,23.9230645,179.97,179.92,5.5561]
[1740145297127,0.04257364,179.9,179.82,23.9230645]
[1740145297328,5.5553,179.95,179.93,0.04023916]
[1740145297529,23.9230645,179.97,179.82,23.9230645]
[1740145297824,5.5559,179.93,179.92,0.04138416]
[1740145298127,23.9230645,179.94,179.88,5.5574]
[1740145298319,23.9230645,179.94,179.8,12.9513]
[1740145299024,23.9230645,179.94,179.8,1.8315]
[1740145299220,0.03540995,179.89,179.85,0.04143725]
[1740145300227,5.5578,179.87,179.85,0.04143725]
[1740145300428,23.9230645,179.88,179.85,0.04143725]
[1740145301324,0.03540995,179.89,179.85,0.04143725]
[1740145301527,0.03540995,179.89,179.87,5.5577]
[1740145301728,0.03540995,179.89,179.85,0.04143725]
[1740145302635,0.03540995,179.89,179.88,5.5574]
[1740145303035,0.03540995,179.89,179.85,0.04143725]
[1740145303230,0.03540995,179.89,179.86,5.558]
[1740145303630,0.03540995,179.89,179.85,0.04143725]
[1740145304128,23.9230645,179.88,179.85,0.04143725]
[1740145304334,79.5230645,179.88,179.85,0.04143725]
[1740145304534,23.9230645,179.88,179.85,0.04143725]
[1740145304935,5.5581,179.86,179.81,5.5593]
[1740145305327,23.9230645,179.88,179.81,5.5593]
[1740145305933,0.04153127,179.86,179.83,0.03806385]
[1740145306235,5.5586,179.85,179.83,0.03806385]
[1740145307139,0.04153127,179.86,179.83,0.03806385]
[1740145307732,29.4816645,179.85,179.83,0.03806385]
[1740145307929,79.5230645,179.85,179.73,3.5282]
[1740145308135,23.9230645,179.85,179.73,3.5282]
[1740145308537,5.5592,179.83,179.78,5.5603]
[1740145309041,23.9230645,179.81,179.67,30.3403744]
[1740145309337,23.9230645,179.77,179.67,30.3403744]
[1740145309538,29.4841645,179.77,179.69,5.5632]
[1740145309940,29.4841645,179.77,179.67,30.3403744]
[1740145309941,23.9230645,179.77,179.65,3.4926]
[1740145310341,0.04203313,179.73,179.69,0.04213572]
[1740145310738,0.04203313,179.73,179.65,3.4926]
[1740145310739,0.04203313,179.73,179.65,5.5645]
[1740145311040,0.04203313,179.73,179.64,30.3403744]
[1740145311341,0.04203313,179.73,179.65,5.5643]
[1740145311531,0.04203313,179.73,179.64,30.3403744]
[1740145311936,0.04203313,179.73,179.68,5.5634]
[1740145312136,0.04203313,179.73,179.67,0.03671052]
[1740145312843,0.04203313,179.73,179.67,5.60041052]
[1740145313043,0.04203313,179.73,179.67,0.03671052]
[1740145313337,5.60413313,179.73,179.67,5.60061052]
[1740145313641,0.04203313,179.73,179.67,5.60061052]
[1740145314037,0.04203313,179.73,179.67,0.03671052]
[1740145314237,0.04203313,179.73,179.67,5.60061052]
[1740145314942,5.5624,179.72,179.67,5.60061052]
[1740145315245,5.5624,179.72,179.67,0.03671052]
[1740145315541,23.9230645,179.72,179.67,0.03671052]
[1740145315932,0.04203313,179.73,179.54,23.9230645]
[1740145315933,5.5642,179.67,179.54,23.9230645]
[1740145316144,5.5642,179.67,179.61,5.5655]
[1740145316339,1.8284,179.71,179.58,1.7872]
[1740145316644,5.5637,179.68,179.63,5.5651]
[1740145317038,0.04011158,179.67,179.64,0.03698942]
[1740145319843,0.04011158,179.67,179.65,5.5645]
[1740145320540,0.04011158,179.67,179.64,0.03698942]
[1740145321747,0.04011158,179.67,179.64,5.60178942]
[1740145322047,0.04011158,179.67,179.64,0.03698942]
[1740145322742,0.04011158,179.67,179.66,5.5642]
[1740145323248,1.742,179.76,179.7,5.563]
[1740145323646,23.9230645,179.75,179.67,1.7509]
[1740145323947,23.9230645,179.72,179.59,11.1328]
[1740145324246,0.04006817,179.67,179.65,5.5643]
[1740145324450,0.04006817,179.67,179.64,0.04237258]
[1740145324843,0.04006817,179.67,179.66,5.5642]
[1740145325140,0.04006817,179.67,179.64,0.04237258]
[1740145325347,0.04006817,179.67,179.65,5.5644]
[1740145325547,0.04006817,179.67,179.64,0.04237258]
[1740145326645,0.04006817,179.67,179.65,5.5645]
[1740145327047,0.04006817,179.67,179.64,0.04237258]
[1740145327237,23.9230645,179.75,179.64,0.04237258]
[1740145327436,23.9230645,179.75,179.6,1.7509]
[1740145327741,5.5612,179.76,179.72,5.5621]
[1740145327945,194.6935,179.8,179.65,23.9230645]
[1740145328142,194.6935,179.8,179.66,1.6973]
[1740145328338,5.561,179.77,179.66,1.6973]
[1740145328542,0.0421665,179.75,179.71,0.04274358]
[1740145329647,5.6038665,179.75,179.71,5.60514358]
[1740145330147,0.0421665,179.75,179.71,0.04274358]
[1740145330947,0.0421665,179.75,179.74,5.5618]
[1740145331539,5.5597,179.81,179.72,1.8357]
[1740145331844,1.7894,179.84,179.72,1.8357]
[1740145332046,7.3481,179.84,179.72,1.8357]
[1740145332443,1.7894,179.84,179.72,1.8357]
[1740145332651,0.03958057,179.8,179.76,0.03894153]
[1740145333049,5.5604,179.79,179.76,0.03894153]
[1740145333247,0.03958057,179.8,179.76,0.03894153]
[1740145333949,0.03958057,179.8,179.66,1.6973]
[1740145333950,23.9230645,179.79,179.66,1.6973]
[1740145334150,23.9230645,179.76,179.66,3.5017]
[1740145334745,23.9230645,179.73,179.66,1.8044]
[1740145335248,0.04266196,179.71,179.68,0.04161852]
[1740145337851,5.60556196,179.71,179.68,0.04161852]
[1740145338553,0.04266196,179.71,179.68,0.04161852]
[1740145339755,0.04266196,179.71,179.69,5.5631]
[1740145339946,0.04266196,179.71,179.68,0.04161852]
[1740145340850,0.04266196,179.71,179.69,5.5633]
[1740145341051,0.04266196,179.71,179.68,0.04161852]
[1740145341355,0.04266196,179.71,179.7,5.563]
[1740145342057,0.04266196,179.71,179.68,5.60511852]
[1740145342356,0.04266196,179.71,179.68,0.04161852]
[1740145342754,0.04266196,179.71,179.7,5.563]
[1740145343457,5.5611,179.77,179.7,55.65]
[1740145343656,5.5611,179.77,179.69,1.7699]
[1740145344054,5.5602,179.79,179.69,1.7699]
[1740145344452,0.04217084,179.76,179.74,5.5615]
[1740145344658,0.04217084,179.76,179.72,0.04028294]
[1740145345156,29.4824645,179.82,179.72,0.04028294]
[1740145345361,5.5594,179.82,179.72,0.04028294]
[1740145345759,23.9230645,179.85,179.72,0.04028294]
[1740145345954,23.9230645,179.85,179.7,1.7548]
[1740145346156,23.9230645,179.85,179.77,5.5605]
[1740145346354,0.04038309,179.79,179.76,0.04252357]
[1740145346550,23.9230645,179.85,179.76,0.04252357]
[1740145346759,0.03524824,179.79,179.77,5.5606]
[1740145346965,23.9230645,179.85,179.77,5.5606]
[1740145347168,0.04133386,179.8,179.77,5.5606]
[1740145347362,0.04133386,179.8,179.76,0.04252357]
[1740145348066,5.60133386,179.8,179.77,5.5608]
[1740145348267,0.04133386,179.8,179.76,0.04252357]
[1740145349668,1.6754,179.87,179.76,0.04252357]
[1740145349865,5.5578,179.87,179.83,5.5587]
[1740145350072,23.9230645,179.91,179.76,23.9230645]
[1740145350371,5.5569,179.9,179.86,5.5578]
[1740145350872,5.59827234,179.9,179.86,5.59458316]
[1740145351074,5.5572,179.89,179.86,5.59458316]